bitfinex/quotes_SOLUSD_20250717
["timestamp","ask_amount","ask_price","bid_price","bid_amount"]
[1752716080822,32.83,171.43,171.41,9.72273601]
[1752716081004,5.83294447,171.44,171.36,7.4169]
[1752716081189,20.41530564,171.44,171.36,7.4169]
[1752716081522,20.41530564,171.44,171.42,9.72273601]
[1752716081731,5.83226408,171.46,171.43,9.72273601]
[1752716081936,5.83226408,171.46,171.4,26.0]
[1752716082219,5.83226408,171.46,171.4,26.7]
[1752716082541,0.71,171.45,171.4,26.0]
[1752716082823,32.91,171.45,171.36,0.1]
[1752716083125,32.93,171.44,171.4,9.72273601]
[1752716083304,0.71,171.43,171.36,0.1]
[1752716083621,0.71,171.46,171.36,26.8]
[1752716083923,32.22,171.45,171.36,0.1]
[1752716084091,4.81120187,171.44,171.36,0.1]
[1752716084292,5.83328472,171.43,171.36,0.1]
[1752716085325,5.83328472,171.43,171.36,0.8]
[1752716085528,5.83328472,171.43,171.42,9.72273601]
[1752716085913,21.12649652,171.43,171.37,26.0]
[1752716086414,21.12649652,171.43,171.36,0.1]
[1752716086612,21.12649652,171.43,171.37,26.0]
[1752716087004,0.71,171.42,171.36,0.1]
[1752716088010,0.71,171.42,171.41,9.72273601]
[1752716088195,5.83328472,171.43,171.36,0.8]
[1752716088532,5.83396534,171.41,171.36,0.1]
[1752716088912,0.71,171.4,171.38,9.72273601]
[1752716089100,0.71,171.4,171.39,9.72273601]
[1752716089429,0.71,171.4,171.38,9.72273601]
[1752716089618,5.83396534,171.41,171.39,9.72273601]
[1752716089800,5.83260425,171.45,171.4,9.72273601]
[1752716090000,5.83260425,171.45,171.41,0.7]
[1752716090206,0.71,171.44,171.43,9.72273601]
[1752716090408,5.83328472,171.43,171.37,0.7]
[1752716090731,0.71,171.42,171.36,0.1]
[1752716090896,32.7,171.41,171.36,0.1]
[1752716091096,0.71,171.4,171.39,9.72273601]
[1752716091339,32.7,171.41,171.36,0.1]
[1752716091624,0.71,171.4,171.39,9.72273601]
[1752716092115,32.7,171.41,171.36,0.1]
[1752716092426,33.41,171.41,171.4,9.72273601]
[1752716092593,39.24396534,171.41,171.4,9.72273601]
[1752716092795,39.24396534,171.41,171.36,0.1]
[1752716092796,5.83396534,171.41,171.36,0.1]
[1752716093119,5.83396534,171.41,171.4,9.72273601]
[1752716093322,5.83396534,171.41,171.37,0.7]
[1752716093703,5.83396534,171.41,171.4,9.72273601]
[1752716094335,0.7,171.46,171.4,46.10547202]
[1752716094636,6.53226408,171.46,171.45,9.72273601]
[1752716094931,9.91384218,171.46,171.45,9.72273601]
[1752716095136,5.83226408,171.46,171.45,9.72273601]
[1752716095514,6.53226408,171.46,171.45,9.72273601]
[1752716095732,5.83226408,171.46,171.45,9.72273601]
[1752716096138,5.83226408,171.46,171.4,26.66]
[1752716096313,5.83226408,171.46,171.4,36.38273601]
[1752716096513,5.83226408,171.46,171.45,9.72273601]
[1752716096825,6.53226408,171.46,171.45,9.72273601]
[1752716097618,21.11292429,171.46,171.4,24.0]
[1752716097941,21.11292429,171.46,171.45,9.72273601]
[1752716098636,21.11292429,171.46,171.4,24.0]
[1752716098840,21.11292429,171.46,171.44,9.72273601]
[1752716099052,0.7,171.45,171.4,24.0]
[1752716099342,0.7,171.44,171.4,24.0]
[1752716099515,21.11292429,171.46,171.43,9.72273601]
[1752716099717,20.41292429,171.46,171.45,9.72273601]
[1752716099932,24.51289847,171.46,171.44,9.72273601]
[1752716100129,20.41292429,171.46,171.44,9.72273601]
[1752716100334,4.80284682,171.45,171.44,9.72273601]
[1752716100636,4.10284682,171.45,171.44,9.72273601]
[1752716100939,20.41292429,171.46,171.42,0.66]
[1752716101136,0.7,171.46,171.4,24.0]
[1752716101328,0.7,171.45,171.4,24.0]
[1752716101726,0.7,171.45,171.44,9.72273601]
[1752716102242,4.80446478,171.45,171.44,9.72273601]
[1752716102541,14.52720079,171.45,171.37,0.06]
[1752716102745,37.40446478,171.44,171.37,0.06]
[1752716103040,5.83362501,171.42,171.37,0.06]
[1752716103240,5.83294447,171.44,171.41,9.72273601]
[1752716103453,5.83192395,171.47,171.43,9.72273601]
[1752716103742,4.11707847,171.46,171.44,0.66]
[1752716103931,5.83166264,171.48,171.45,0.66]
[1752716104115,4.11716323,171.47,171.46,0.66]
[1752716104321,5.83067836,171.51,171.46,0.66]
[1752716104523,5.82988398,171.53,171.46,0.66]
[1752716105044,5.82988398,171.53,171.52,9.72273601]
[1752716105251,5.82954412,171.54,171.52,9.72273601]
[1752716105577,0.7,171.53,171.5,9.72273601]
[1752716105759,0.7,171.53,171.52,9.72273601]
[1752716106044,0.03,171.52,171.5,9.72273601]
[1752716106221,33.3,171.51,171.49,9.72273601]
[1752716106422,33.3,171.51,171.44,27.5544]
[1752716106618,33.3,171.51,171.5,9.72273601]
[1752716106930,33.3,171.51,171.44,27.5544]
[1752716107131,6.53090379,171.5,171.44,26.0]
[1752716107335,10.42273601,171.49,171.44,9.72273601]
[1752716107524,20.40816326,171.5,171.47,9.72273601]
[1752716107725,0.7,171.49,171.48,9.72273601]
[1752716108125,38.39090379,171.5,171.48,9.72273601]
[1752716108419,38.39090379,171.5,171.49,9.72273601]
[1752716109128,0.03,171.52,171.49,9.72273601]
[1752716109129,0.03,171.52,171.51,26.0]
[1752716109439,0.03,171.52,171.51,35.72273601]
[1752716110249,0.03,171.52,171.51,36.38273601]
[1752716110959,14.56747337,171.62,171.55,26.0]
[1752716111256,5.82682671,171.62,171.61,9.72273601]
[1752716112361,6.52682671,171.62,171.61,9.72273601]
[1752716112662,21.09389348,171.62,171.61,9.72273601]
[1752716113136,21.09389348,171.62,171.55,26.66]
[1752716113332,20.39389348,171.62,171.61,9.72273601]
[1752716113926,20.39389348,171.62,171.56,0.66]
[1752716114131,5.82682671,171.62,171.61,9.72273601]
[1752716114647,5.82682671,171.62,171.58,0.66]
[1752716114848,5.82682671,171.62,171.61,9.72273601]
[1752716115244,5.85649368,171.63,171.61,10.38273601]
[1752716115444,5.85649368,171.63,171.62,35.72273601]
[1752716115842,6.55649368,171.63,171.56,0.66]
[1752716116045,21.1227117,171.63,171.62,9.72273601]
[1752716116352,20.4227117,171.63,171.62,9.72273601]
[1752716116650,21.1227117,171.63,171.62,9.72273601]
[1752716116826,5.85649368,171.63,171.62,9.72273601]
[1752716117025,0.03,171.63,171.62,35.72273601]
[1752716117455,0.03,171.63,171.62,26.0]
[1752716117644,0.03,171.63,171.62,35.72273601]
[1752716118357,0.73,171.63,171.61,9.72273601]
[1752716118558,0.7,171.62,171.58,26.0]
[1752716118744,0.03,171.63,171.61,9.72273601]
[1752716118946,0.03,171.63,171.62,9.72273601]
[1752716119241,0.73,171.63,171.62,9.72273601]
[1752716119846,0.03,171.63,171.62,9.72273601]
[1752716120358,0.73,171.63,171.61,9.72273601]
[1752716120586,0.7,171.62,171.61,9.72273601]
[1752716121154,0.7,171.62,171.58,26.0]
[1752716121354,0.03,171.63,171.61,9.72273601]
[1752716121659,0.03,171.63,171.62,9.72273601]
[1752716122660,0.03,171.63,171.58,26.0]
[1752716122661,0.73,171.63,171.58,26.0]
[1752716122957,0.03,171.63,171.62,9.72273601]
[1752716123763,0.03,171.63,171.59,0.66]
[1752716124064,0.03,171.63,171.62,9.72273601]
[1752716124240,0.03,171.63,171.59,0.67]
[1752716124441,0.03,171.63,171.58,26.67]
[1752716124648,0.69,171.63,171.62,9.72273601]
[1752716124857,0.03,171.63,171.62,9.72273601]
[1752716125942,0.03,171.63,171.62,36.39273601]
[1752716126264,0.03,171.63,171.62,35.72273601]
[1752716127236,0.03,171.63,171.62,36.39273601]
[1752716127431,6.51648721,171.63,171.62,26.0]
[1752716127636,21.08270523,171.63,171.6,9.72273601]
[1752716127856,0.66,171.62,171.59,9.72273601]
[1752716128062,20.42270523,171.63,171.61,9.72273601]
[1752716128243,21.08270523,171.63,171.61,9.72273601]
[1752716128448,5.85648721,171.63,171.62,9.72273601]
[1752716128647,5.85648721,171.63,171.62,35.72273601]
[1752716129543,21.08270523,171.63,171.58,26.0]
[1752716129755,33.0,171.62,171.6,9.72273601]
[1752716130346,33.0,171.62,171.58,26.0]
[1752716130552,0.66,171.61,171.6,9.72273601]
[1752716130746,0.66,171.61,171.58,26.0]
[1752716130953,9.72273601,171.59,171.51,7.1166]
[1752716131156,0.66,171.6,171.48,18.31758397]
[1752716131157,9.72273601,171.56,171.48,2.2029]
[1752716131454,30.12732995,171.53,171.47,9.72273601]
[1752716131765,9.72273601,171.5,171.45,0.06]
[1752716131978,9.72273601,171.48,171.45,0.06]
[1752716132160,9.72273601,171.48,171.43,9.72273601]
[1752716132352,9.72273601,171.48,171.41,27.41]
[1752716132353,0.66,171.47,171.41,53.41]
[1752716132555,0.66,171.47,171.43,9.72273601]
[1752716132556,32.4,171.46,171.43,9.72273601]
[1752716132781,0.66,171.45,171.37,0.06]
[1752716132972,0.66,171.45,171.39,9.72273601]
[1752716132973,9.72273601,171.44,171.39,9.72273601]
[1752716133177,0.66,171.43,171.39,9.72273601]
[1752716133362,33.08,171.42,171.39,9.72273601]
[1752716133682,33.08,171.42,171.37,0.06]
[1752716133683,5.83396534,171.41,171.4,9.72273601]
[1752716133898,6.49396534,171.41,171.4,9.72273601]
[1752716134392,32.4,171.43,171.4,9.72273601]
[1752716134554,5.83260425,171.45,171.42,9.72273601]
[1752716134753,5.83260425,171.45,171.44,9.72273601]
[1752716134959,5.8312438,171.49,171.44,10.39273601]
[1752716135272,5.8312438,171.49,171.48,9.72273601]
[1752716135609,21.06935331,171.49,171.48,9.72273601]
[1752716135760,6.4912438,171.49,171.48,9.72273601]
[1752716135958,5.8312438,171.49,171.48,9.72273601]
[1752716136180,6.4912438,171.49,171.48,9.72273601]
[1752716137596,5.8312438,171.49,171.48,9.72273601]
[1752716137962,5.83091911,171.5,171.48,9.72273601]
[1752716138191,5.83091911,171.5,171.49,9.72273601]
[1752716138681,5.83063315,171.51,171.49,10.39273601]
[1752716138894,5.83063315,171.51,171.5,9.72273601]
[1752716139262,5.83028816,171.52,171.5,19.44547202]
[1752716139466,6.4881851,171.58,171.51,10.39273601]
[1752716139767,38.2081851,171.58,171.57,9.72273601]
[1752716140101,5.8281851,171.58,171.57,9.72273601]
[1752716141368,38.20783893,171.6,171.57,10.39273601]
[1752716141592,38.20783893,171.6,171.59,9.72273601]
[1752716142167,5.82682671,171.62,171.59,10.39273601]
[1752716142491,5.82682671,171.62,171.61,9.72273601]
[1752716142998,5.82682671,171.62,171.61,14.97542088]
[1752716143596,5.85648721,171.63,171.61,14.97542088]
[1752716143785,38.33648721,171.63,171.62,14.97542088]
[1752716145771,53.56270523,171.63,171.57,26.67]
[1752716146175,53.56270523,171.63,171.62,14.97542088]
[1752716146692,53.50270523,171.63,171.62,14.97542088]
[1752716146879,52.84270523,171.63,171.62,14.97542088]
[1752716147301,20.42270523,171.63,171.62,14.97542088]
[1752716147682,53.48270523,171.63,171.62,14.97542088]
[1752716147884,71.47684483,171.63,171.58,14.97542088]
[1752716148098,0.66,171.62,171.58,14.97542088]
[1752716148286,70.81684483,171.63,171.59,14.97542088]
[1752716148490,0.66,171.61,171.59,14.97542088]
[1752716148686,24.10142395,171.63,171.6,14.97542088]
[1752716148999,32.38,171.62,171.57,0.67]
[1752716149184,20.39508186,171.61,171.57,0.67]
[1752716149390,20.39508186,171.61,171.55,26.0]
[1752716149602,20.39508186,171.61,171.57,0.67]
[1752716149807,5.82716624,171.61,171.55,26.0]
[1752716150185,5.82716624,171.61,171.55,26.67]
[1752716150384,20.39508186,171.61,171.55,26.67]
[1752716150650,20.39508186,171.61,171.6,14.97542088]
[1752716150804,6.48716624,171.61,171.55,26.0]
[1752716151008,6.48716624,171.61,171.58,14.97542088]
[1752716151192,6.48716624,171.61,171.59,14.97542088]
[1752716151396,0.66,171.6,171.58,14.97542088]
[1752716151708,32.34,171.59,171.58,14.97542088]
[1752716153380,38.82784544,171.59,171.58,14.97542088]
[1752716153592,38.16784544,171.59,171.58,14.97542088]
[1752716155495,38.16784544,171.59,171.56,0.69]
[1752716155826,38.16784544,171.59,171.58,14.97542088]
[1752716157793,32.34,171.59,171.58,15.66542088]
[1752716158191,38.12724377,171.61,171.58,15.66542088]
[1752716158493,38.12724377,171.61,171.6,14.97542088]
[1752716159088,32.3,171.61,171.6,14.97542088]
[1752716159303,38.12716624,171.61,171.6,15.66542088]
[1752716159813,5.82716624,171.61,171.6,14.97542088]
[1752716160416,6.49716624,171.61,171.6,14.97542088]
[1752716161699,5.82716624,171.61,171.6,14.97542088]
[1752716162220,21.06508186,171.61,171.59,14.97542088]
[1752716162518,32.87,171.6,171.55,26.0]
[1752716162704,0.67,171.59,171.58,14.97542088]
[1752716163300,21.06508186,171.61,171.58,14.97542088]
[1752716163499,5.82716624,171.61,171.6,14.97542088]
[1752716163711,38.89959053,171.62,171.6,15.66542088]
[1752716164024,33.07276,171.62,171.61,15.66542088]
[1752716164196,0.91276,171.62,171.61,58.45010485]
[1752716164891,0.91276,171.62,171.61,53.24473078]
[1752716165092,0.03,171.63,171.62,26.0]
[1752716165294,0.03,171.63,171.62,36.46004681]
[1752716165693,32.14,171.67,171.62,53.24473078]
[1752716165916,5.82454339,171.69,171.66,9.77004681]
[1752716166218,0.03,171.7,171.68,9.77004681]
[1752716166391,0.03,171.7,171.69,10.46004681]
[1752716166590,0.03,171.7,171.69,9.77004681]
[1752716166796,6.52411182,171.7,171.67,9.77004681]
[1752716167099,32.81,171.69,171.68,9.77004681]
[1752716167313,32.14,171.69,171.68,9.77004681]
[1752716167512,32.14,171.69,171.64,26.69]
[1752716167827,5.8247903,171.68,171.65,0.69]
[1752716167998,5.8247903,171.68,171.64,26.0]
[1752716168515,5.8247903,171.68,171.64,26.69]
[1752716168721,0.67,171.67,171.64,26.0]
[1752716168904,32.14,171.66,171.64,26.0]
[1752716169218,0.67,171.65,171.6,0.69]
[1752716169397,0.67,171.64,171.63,9.77004681]
[1752716169601,20.39270523,171.63,171.6,9.77004681]
[1752716169811,53.20270523,171.63,171.61,9.77004681]
[1752716170024,5.82648721,171.63,171.62,9.77004681]
[1752716170321,37.96648721,171.63,171.62,9.77004681]
[1752716170626,37.96648721,171.63,171.62,35.77004681]
[1752716170821,32.14,171.63,171.62,35.77004681]
[1752716171014,5.82624381,171.64,171.62,36.46004681]
[1752716171200,37.94584619,171.65,171.63,9.77004681]
[1752716171408,5.82584619,171.65,171.64,9.77004681]
[1752716172135,37.9251296,171.67,171.64,10.46004681]
[1752716172426,37.9251296,171.67,171.66,9.77004681]
[1752716172824,38.5951296,171.67,171.63,26.0]
[1752716173000,52.48795362,171.67,171.66,9.77004681]
[1752716173205,5.8251296,171.67,171.66,9.77004681]
[1752716173424,37.9051296,171.67,171.66,9.77004681]
[1752716173610,5.8251296,171.67,171.66,9.77004681]
[1752716173812,5.8251296,171.67,171.66,10.46004681]
[1752716174304,5.8251296,171.67,171.66,9.77004681]
[1752716175098,6.4951296,171.67,171.66,9.77004681]
[1752716175724,21.05795362,171.67,171.62,26.0]
[1752716175927,20.38795362,171.67,171.65,9.77004681]
[1752716176125,20.38795362,171.67,171.66,9.77004681]
[1752716176533,21.05795362,171.67,171.66,9.77004681]
[1752716177026,20.38795362,171.67,171.66,9.77004681]
[1752716177435,21.05795362,171.67,171.63,26.0]
[1752716177618,21.05795362,171.67,171.66,9.77004681]
[1752716177819,52.38795362,171.67,171.66,9.77004681]
[1752716178021,37.8251296,171.67,171.66,9.77004681]
[1752716178915,37.8251296,171.67,171.66,10.46004681]
[1752716179102,5.8251296,171.67,171.66,10.46004681]
[1752716180233,5.8247903,171.68,171.66,9.77004681]
[1752716180440,5.8247903,171.68,171.67,9.77004681]
[1752716181438,5.82450378,171.69,171.67,36.46004681]
[1752716181611,5.82450378,171.69,171.68,10.46004681]
[1752716182311,5.82450378,171.69,171.68,9.77004681]
[1752716183018,5.82450378,171.69,171.68,10.46004681]
[1752716183729,5.85418779,171.7,171.68,10.46004681]
[1752716183909,5.85418779,171.7,171.69,36.42004681]
[1752716184213,0.03,171.71,171.69,46.19009362]
[1752716184404,5.85377263,171.71,171.7,20.19009362]
[1752716184606,0.03,171.71,171.7,20.19009362]
[1752716184945,31.84,171.76,171.73,26.0]
[1752716185139,5.82106059,171.79,171.75,9.77004681]
[1752716185434,37.64106059,171.79,171.78,9.77004681]
[1752716185937,7.39075084,171.8,171.78,9.77004681]
[1752716186139,7.39075084,171.8,171.79,9.77004681]
[1752716186935,39.21075084,171.8,171.79,9.77004681]
[1752716187316,54.44255526,171.8,171.74,0.65]
[1752716187516,53.76255526,171.8,171.79,9.77004681]
[1752716187833,39.21075084,171.8,171.79,9.77004681]
[1752716188215,7.39075084,171.8,171.79,9.77004681]
[1752716188411,7.39075084,171.8,171.79,19.54009362]
[1752716188623,1.57,171.8,171.79,20.19009362]
[1752716189321,7.39072176,171.8,171.79,36.97477759]
[1752716189724,1.57,171.8,171.79,36.97477759]
[1752716190816,7.39072176,171.8,171.79,20.19009362]
[1752716191127,7.39072176,171.8,171.79,10.42004681]
[1752716191329,1.57,171.8,171.79,20.19009362]
[1752716191535,0.2,171.81,171.79,20.19009362]
[1752716191724,0.2,171.81,171.8,46.19009362]
[1752716192120,5.81941456,171.84,171.83,26.0]
[1752716192323,5.81941456,171.84,171.83,35.77004681]
[1752716192922,5.81941456,171.84,171.83,36.42004681]
[1752716193132,20.36461767,171.87,171.83,36.42004681]
[1752716193449,37.55835107,171.87,171.86,9.77004681]
[1752716194022,5.81835107,171.87,171.86,9.77004681]
[1752716194240,5.81835107,171.87,171.83,26.0]
[1752716194241,0.68,171.87,171.83,26.0]
[1752716194452,0.68,171.87,171.86,9.77004681]
[1752716195247,6.49835107,171.87,171.8,8.5776]
[1752716195427,32.42,171.86,171.85,9.77004681]
[1752716196548,32.42,171.86,171.84,9.77004681]
[1752716196732,0.68,171.85,171.77,6.5429]
[1752716196930,0.68,171.85,171.73,7.1929]
[1752716197128,9.77004681,171.78,171.69,6.5429]
[1752716197331,52.79608429,171.77,171.73,9.77004681]
[1752716197629,0.68,171.76,171.7,9.77004681]
[1752716198154,5.82173837,171.77,171.75,9.77004681]
[1752716198347,31.76,171.76,171.71,0.65]
[1752716198540,31.76,171.76,171.75,9.77004681]
[1752716199336,37.58207731,171.76,171.75,9.77004681]
[1752716199825,38.26207731,171.76,171.7,35.77004681]
[1752716200030,38.26207731,171.76,171.74,9.77004681]
[1752716200341,0.68,171.75,171.74,9.77004681]
[1752716200549,0.68,171.75,171.72,9.77004681]
[1752716200722,0.68,171.75,171.66,0.65]
[1752716201044,10.45004681,171.75,171.7,9.77004681]
[1752716201351,5.82309439,171.73,171.71,9.77004681]
[1752716201532,31.76,171.72,171.71,9.77004681]
[1752716201732,32.44,171.72,171.71,9.77004681]
[1752716202850,37.58343349,171.72,171.71,9.77004681]
[1752716203035,38.26343349,171.72,171.67,26.0]
[1752716203229,37.58343349,171.72,171.71,9.77004681]
[1752716203429,52.14201723,171.72,171.7,9.77004681]
[1752716203650,52.14201723,171.72,171.71,9.77004681]
[1752716203827,52.14201723,171.72,171.7,9.77004681]
[1752716204153,0.68,171.71,171.7,9.77004681]
[1752716205042,6.50377263,171.71,171.7,9.77004681]
[1752716205440,6.50377263,171.71,171.64,23.23228397]
[1752716205441,21.06320422,171.71,171.67,9.77004681]
[1752716205638,21.06320422,171.71,171.63,26.06]
[1752716205639,32.4,171.7,171.68,9.77004681]
[1752716205838,31.72,171.7,171.69,9.77004681]
[1752716206038,31.72,171.7,171.64,26.65]
[1752716206236,31.72,171.7,171.69,9.77004681]
[1752716207259,37.54411182,171.7,171.69,9.77004681]
[1752716208150,5.82386868,171.71,171.69,9.77004681]
[1752716208353,5.82386868,171.71,171.7,9.77004681]
[1752716208546,37.52386868,171.71,171.7,9.77004681]
[1752716209460,5.82332391,171.73,171.7,10.42004681]
[1752716209664,5.82207731,171.76,171.72,9.77004681]
[1752716209874,5.82207731,171.76,171.75,9.77004681]
[1752716210044,37.50207731,171.76,171.75,9.77004681]
[1752716210852,38.18207731,171.76,171.73,26.0]
[1752716211164,52.0572706,171.76,171.74,9.77004681]
[1752716211772,0.68,171.75,171.74,9.77004681]
[1752716212062,52.0572706,171.76,171.74,9.77004681]
[1752716212275,20.3772706,171.76,171.75,9.77004681]
[1752716212443,52.0172706,171.76,171.75,9.77004681]
[1752716212645,52.6972706,171.76,171.71,26.0]
[1752716212847,0.68,171.75,171.71,26.0]
[1752716213079,32.32,171.74,171.71,26.0]
[1752716213373,5.82309439,171.73,171.71,26.0]
[1752716213559,31.64,171.72,171.71,26.0]
[1752716213863,32.31,171.72,171.71,26.0]
[1752716214068,32.31,171.72,171.71,35.77004681]
[1752716214260,32.31,171.72,171.71,9.77004681]
[1752716214444,31.64,171.72,171.71,9.77004681]
[1752716214647,32.31,171.72,171.71,9.77004681]
[1752716215078,32.31,171.72,171.69,26.0]
[1752716215286,0.67,171.71,171.63,0.06]
[1752716215456,37.42411182,171.7,171.63,0.06]
[1752716215650,37.42411182,171.7,171.67,9.77004681]
[1752716215651,0.67,171.69,171.67,9.77004681]
[1752716215850,32.27,171.68,171.67,9.77004681]
[1752716217474,38.0947903,171.68,171.67,9.77004681]
[1752716218044,38.0947903,171.68,171.65,26.0]
[1752716218277,38.0947903,171.68,171.67,9.77004681]
[1752716218846,5.8247903,171.68,171.67,9.77004681]
[1752716219049,37.3847903,171.68,171.67,9.77004681]
[1752716219779,37.3647903,171.68,171.67,9.77004681]
[1752716220583,52.59676606,171.68,171.63,0.06]
[1752716220882,0.67,171.67,171.65,9.77004681]
[1752716221048,5.8247903,171.68,171.66,9.77004681]
[1752716221376,31.52,171.67,171.64,0.7]
[1752716221561,0.67,171.66,171.63,0.06]
[1752716221872,32.19,171.65,171.63,0.06]
[1752716222057,0.67,171.64,171.63,0.06]
[1752716222374,6.49614775,171.64,171.63,9.83004681]
[1752716222573,5.82614775,171.64,171.63,9.83004681]
[1752716223163,6.49614775,171.64,171.63,0.06]
[1752716223764,6.49614775,171.64,171.63,9.83004681]
[1752716224251,31.62,171.64,171.63,9.83004681]
[1752716224473,5.82580833,171.65,171.63,9.83004681]
[1752716224663,5.82580833,171.65,171.64,9.77004681]
[1752716224866,37.42580833,171.65,171.64,9.77004681]
[1752716225374,37.42580833,171.65,171.63,0.06]
[1752716225560,38.09580833,171.65,171.64,9.77004681]
[1752716225753,38.09580833,171.65,171.63,0.06]
[1752716225957,0.67,171.64,171.63,9.83004681]
[1752716226151,37.42580833,171.65,171.63,9.83004681]
[1752716226372,5.82580833,171.65,171.64,9.77004681]
[1752716226564,37.42580833,171.65,171.64,9.77004681]
[1752716226875,37.42580833,171.65,171.63,0.06]
[1752716226876,38.09580833,171.65,171.63,0.06]
[1752716227080,0.67,171.64,171.63,0.06]
[1752716227469,10.44004681,171.64,171.62,0.06]
[1752716227657,32.31,171.63,171.62,0.06]
[1752716228354,38.13648721,171.63,171.62,0.06]
[1752716229372,38.13648721,171.63,171.6,9.83004681]
[1752716229574,0.67,171.62,171.6,0.06]
[1752716229758,31.6,171.61,171.6,0.06]
[1752716229953,32.27,171.61,171.6,0.06]
[1752716230260,47.86721305,171.61,171.6,1e-08]
[1752716230582,62.43512867,171.61,171.56,9.77004682]
[1752716230789,0.67,171.6,171.56,1e-08]
[1752716230964,31.6,171.59,171.56,9.77004682]
[1752716231164,0.67,171.58,171.56,1e-08]
[1752716231367,31.6,171.57,171.56,9.77004682]
[1752716231574,32.27,171.57,171.56,1e-08]
[1752716232086,32.27,171.57,171.53,0.06]
[1752716232087,42.04004681,171.57,171.53,1e-08]
[1752716232393,5.82954412,171.54,171.53,1e-08]
[1752716232765,37.42954412,171.54,171.53,9.77004682]
[1752716233086,37.42954412,171.54,171.53,10.47004682]
[1752716233588,31.6,171.54,171.53,10.47004682]
[1752716233791,5.82792312,171.59,171.56,26.0]
[1752716234088,37.42792312,171.59,171.58,9.77004681]
[1752716235066,5.82792312,171.59,171.58,10.47004681]
[1752716235788,3.02043373,171.63,171.58,10.47004681]
[1752716235961,5.82682671,171.62,171.6,9.77004681]
[1752716236166,5.82682671,171.62,171.61,9.77004681]
[1752716236388,5.82682671,171.62,171.58,26.0]
[1752716236694,5.82682671,171.62,171.61,9.77004681]
[1752716236995,3.02007122,171.67,171.61,10.47004681]
[1752716237216,37.4051296,171.67,171.66,9.77004681]
[1752716237369,5.8251296,171.67,171.66,10.47004681]
[1752716237689,5.82445104,171.69,171.66,9.77004681]
[1752716237989,5.82445104,171.69,171.68,9.77004681]
[1752716239868,37.43414605,171.7,171.68,10.47004681]
[1752716240069,5.85414605,171.7,171.69,9.77004681]
[1752716241376,0.03,171.7,171.69,10.47004681]
[1752716241691,14.55285065,171.79,171.72,26.0]
[1752716241869,20.37391124,171.79,171.78,9.77004681]
[1752716242069,37.34106059,171.79,171.78,9.77004681]
[1752716242279,38.01106059,171.79,171.78,9.77004681]
[1752716243071,38.01106059,171.79,171.72,32.6287]
[1752716243072,52.56371208,171.79,171.76,9.77004681]
[1752716243292,0.67,171.78,171.77,9.77004681]
[1752716243508,5.82139946,171.78,171.77,9.77004681]
[1752716243679,21.04489812,171.78,171.72,33.3287]
[1752716243874,32.21,171.77,171.68,0.71]
[1752716244096,9.77004681,171.76,171.71,9.77004681]
[1752716244298,32.2,171.75,171.71,9.77004681]
[1752716244507,0.66,171.74,171.71,9.77004681]
[1752716244705,31.54,171.73,171.7,9.77004681]
[1752716244913,32.2,171.73,171.71,9.77004681]
[1752716245210,31.54,171.73,171.72,14.96184601]
[1752716245407,31.54,171.73,171.67,7.3387]
[1752716245408,5.82343349,171.72,171.71,14.96184601]
[1752716245713,6.48343349,171.72,171.69,14.96184601]
[1752716245911,6.48343349,171.72,171.63,7.7546]
[1752716245912,47.14184601,171.71,171.63,8.4646]
[1752716246084,31.52,171.71,171.68,14.96184601]
[1752716246285,31.52,171.71,171.64,26.71]
[1752716246286,31.52,171.71,171.69,14.96184601]
[1752716247091,31.52,171.71,171.7,14.96184601]
[1752716247409,37.34377263,171.71,171.7,14.96184601]
[1752716247611,37.32377263,171.71,171.7,14.96184601]
[1752716248007,5.82275532,171.74,171.7,15.67184601]
[1752716248305,5.82275532,171.74,171.73,14.96184601]
[1752716248510,6.48275532,171.74,171.67,0.71]
[1752716248699,31.52,171.73,171.69,26.0]
[1752716249006,31.52,171.73,171.69,26.71]
[1752716249617,5.82343349,171.72,171.69,26.0]
[1752716249908,0.66,171.71,171.64,0.71]
[1752716250110,31.5,171.7,171.68,14.96184601]